[Event "7th Sharjah Masters 2024"]
[Site "Sharjah"]
[Date "2024.05.17"]
[Round "4.1"]
[White "Salem, A.R. Saleh"]
[Black "Niemann, Hans Moke"]
[Result "1/2-1/2"]
[ECO "B33"]
[WhiteElo "2629"]
[BlackElo "2689"]
[Annotator "TA"]
[PlyCount "25"]
[EventDate "2024.05.13"]
[EventType "swiss"]
[EventCountry "UAE"]
[SourceTitle "playchess.com"]
[Source "ChessBase"]
[SourceQuality "1"]
[TimeControl "5400+30"]

{[%evp 20,25,30,35,26,26,23,27]} 1. e4 {[%emt 0:00:02]} c5 {[%emt 0:01:26]} 2. Nf3 {[%emt 0:00:06][%cal Bg1f3,Bf3d4,Bd4b5,Bb5a3,Ba3c2][%mdl 32]} Nc6 {[%emt 0:03:41]} 3. d4 {[%emt 0:00:31]} cxd4 {[%emt 0:00:41]} 4. Nxd4 {[%emt 1:31:51]} Nf6 {[%emt 0:04:22]} 5. Nc3 {[%emt 0:00:00]} e5 {[%emt 0:00:16]} 6. Ndb5 {[%emt 0:00:00]} d6 {[%emt 0:00:09]} 7. Bg5 {[%emt 0:00:00]} a6 {[%emt 0:00:14]} 8. Na3 {[%emt 0:00:00]} b5 {[%emt 0:00:14]} 9. Nd5 {[%emt 0:00:00]} Be7 {[%emt 0:00:12]} 10. Bxf6 {[%emt 0:00:00]} Bxf6 {[%emt 0:02:49]} 11. c3 {[%emt 0:00:00]} O-O {[%emt 0:01:56]} 12. Nc2 {[%emt 0:00:00]} Rb8 {[%emt 0:00:09] [#]} 13. h4 $1 {[%emt 0:00:00] Not much happened in this game.   Weighted Error Value: White=0.00 (flawless) /Black=0.00 (flawless) .  OK:         	White=2     	Black=1} 1/2-1/2

[Event "7th Sharjah Masters 2024"]
[Site "Sharjah"]
[Date "2024.05.17"]
[Round "4.2"]
[White "Tabatabaei, M. Amin"]
[Black "Aravindh, Chithambaram VR."]
[Result "1/2-1/2"]
[ECO "E42"]
[WhiteElo "2707"]
[BlackElo "2671"]
[Annotator "RC"]
[PlyCount "150"]
[EventDate "2024.05.13"]
[EventType "swiss"]
[EventCountry "UAE"]
[SourceTitle "playchess.com"]
[Source "ChessBase"]
[SourceQuality "1"]
[TimeControl "5400+30"]

1. d4 {[%emt 0:00:03]} Nf6 {[%emt 0:00:11]} 2. c4 {[%emt 0:00:06]} e6 {[%emt 0:00:05]} 3. Nc3 {[%emt 0:00:06]} Bb4 {[%emt 0:00:06]} 4. e3 {[%emt 0:00:06]} c5 {[%emt 0:00:53]} 5. Bd3 {[%emt 0:01:43]} d5 {[%emt 0:09:21]} 6. cxd5 {[%emt 0:02:07]} Nxd5 {[%emt 0:01:52]} 7. Nge2 {[%emt 0:07:20]} cxd4 {[%emt 0:05:52]} 8. exd4 {[%emt 0:00:18]} Nc6 {[%emt 0:01:48]} 9. O-O {[%emt 0:00:55]} O-O {[%emt 0:00:05]} 10. a3 {[%emt 0:00:20]} Be7 {[%emt 0:06:35]} 11. Be4 {[%emt 0:05:42]} Bf6 {[%emt 0:06:45]} 12. Qd3 {[%emt 0:01:03]} g6 {[%emt 0:00:35]} 13. Bh6 {[%emt 0:00:47]} Bg7 {[%emt 0:05:35]} 14. Bxg7 {[%emt 0:00:50]} Kxg7 {[%emt 0:00:05]} 15. Rfe1 {[%emt 0:03:20]} Qd6 {[%emt 0:11:46]} 16. Nb5 {[%emt 0:05:43]} Qb8 {[%emt 0:01:30]} 17. Bxd5 {[%emt 0:05:55]} exd5 {[%emt 0:00:08]} 18. Qf3 {[%emt 0:00:10]} Be6 {[%emt 0:11:29]} 19. Rad1 {[%emt 0:01:46]} a6 {[%emt 0:10:37]} 20. Nbc3 {[%emt 0:00:30]} Qd6 {[%emt 0:00:06]} 21. h4 {[%emt 0:00:27]} f6 {[%emt 0:03:52]} 22. Nf4 {[%emt 0:05:08]} Bf7 {[%emt 0:00:03]} 23. Nfxd5 {[%emt 0:13:01]} Rad8 {[%emt 0:00:18]} 24. Ne3 {[%emt 0:06:04]} Nxd4 {[%emt 0:00:55]} 25. Qxb7 {[%emt 0:00:18]} Rd7 {[%emt 0:01:46]} 26. Qb4 {[%emt 0:21:48]} Qxb4 {[%emt 0:00:24]} 27. axb4 {[%emt 0:18:24]} Rb8 {[%emt 0:03:23]} 28. Ncd5 {[%emt 0:00:00]} Nb5 {[%emt 0:12:50]} 29. Nf4 {[%emt 0:00:00]} Rd4 {[%emt 0:02:16]} 30. Nh5+ {[%emt 0:00:00]} Kf8 {[%emt 0:01:23]} 31. Nxf6 {[%emt 0:00:00]} Kg7 {[%emt 0:00:01]} 32. Nd7 {[%emt 0:00:00]} Rb7 {[%emt 0:00:29]} 33. Nc5 {[%emt 0:00:00]} Rb6 {[%emt 0:00:03]} 34. h5 {[%emt 0:00:00]} Rxb4 {[%emt 0:01:06]} 35. Rd7 {[%emt 0:00:00]} Rd4 {[%emt 0:02:16]} 36. h6+ {[%emt 0:00:00]} Kg8 {[%emt 0:00:04]} 37. Ng4 {[%emt 0:02:03]} g5 {[%emt 0:01:19]} 38. Ree7 {[%emt 0:01:18]} Bg6 {[%emt 0:00:46]} 39. Ne5 {[%emt 0:00:49]} Rxd7 {[%emt 0:00:27]} 40. Ncxd7 {[%emt 0:00:42]} Rd6 {[%emt 0:00:05]} 41. Rg7+ {[%emt 0:00:27]} Kh8 {[%emt 0:00:05]} 42. Nf8 {[%emt 0:00:40]} Bh5 {[%emt 0:00:14]} 43. Rxh7+ {[%emt 0:01:04]} Kg8 {[%emt 0:00:04]} 44. Ned7 {[%emt 0:00:47]} Nd4 {[%emt 0:00:34]} 45. Rg7+ {[%emt 0:00:07]} Kh8 {[%emt 0:00:03]} 46. Rh7+ {[%emt 0:00:03]} Kg8 {[%emt 0:00:02]} 47. g4 {[%emt 0:01:17]} Ne2+ {[%emt 0:01:28]} 48. Kf1 {[%emt 0:00:24]} Nf4 {[%emt 0:00:10]} 49. Rg7+ {[%emt 0:00:04]} Kh8 {[%emt 0:00:02]} 50. Rh7+ {[%emt 0:00:03]} Kg8 {[%emt 0:00:02]} 51. f3 {[%emt 0:00:39]} Be8 {[%emt 0:00:41]} 52. Rg7+ {[%emt 0:00:09]} Kh8 {[%emt 0:00:04]} 53. Rh7+ {[%emt 0:01:21]} Kg8 {[%emt 0:00:01]} 54. Rg7+ {[%emt 0:00:57]} Kh8 {[%emt 0:00:02]} 55. Ne5 {[%emt 0:00:33]} Rxh6 {[%emt 0:00:59]} 56. Re7 {[%emt 0:00:12]} Bb5+ {[%emt 0:00:39]} 57. Ke1 {[%emt 0:00:39]} Kg8 {[%emt 0:00:41]} 58. Nfd7 {[%emt 0:00:08]} Bxd7 {[%emt 0:00:44]} 59. Nxd7 {[%emt 0:00:10]} Rh1+ {[%emt 0:00:07]} 60. Kd2 {[%emt 0:00:45]} Rh2+ {[%emt 0:00:04]} 61. Kd1 {[%emt 0:00:05]} Rxb2 {[%emt 0:00:14]} 62. Nf6+ {[%emt 0:00:27]} Kf8 {[%emt 0:00:02]} 63. Ra7 {[%emt 0:00:05]} Nh3 {[%emt 0:01:30]} 64. Ke1 {[%emt 0:01:59]} Ra2 {[%emt 0:00:59]} 65. Ne4 {[%emt 0:00:21]} Ra3 {[%emt 0:00:11]} 66. Nd2 {[%emt 0:00:20]} Nf4 {[%emt 0:01:35]} 67. Kf2 {[%emt 0:00:17]} Ra2 {[%emt 0:00:04]} 68. Ke3 {[%emt 0:00:18]} Nd5+ {[%emt 0:00:09]} 69. Ke2 {[%emt 0:00:04]} Nf4+ {[%emt 0:00:10]} 70. Kd1 {[%emt 0:00:04]} Ra1+ {[%emt 0:00:58]} 71. Kc2 {[%emt 0:00:16]} Ra2+ {[%emt 0:00:03]} 72. Kc3 {[%emt 0:00:26]} Nd5+ {[%emt 0:00:20]} 73. Kd3 {[%emt 0:00:01]} Nf4+ {[%emt 0:00:08]} 74. Ke3 {[%emt 0:00:02]} Nd5+ {[%emt 0:00:07]} 75. Ke2 {[%emt 0:00:03]} Nf4+ {[%emt 0:00:19]} 1/2-1/2

[Event "7th Sharjah Masters 2024"]
[Site "Sharjah"]
[Date "2024.05.17"]
[Round "4.3"]
[White "Shankland, Sam"]
[Black "Puranik, Abhimanyu"]
[Result "1/2-1/2"]
[ECO "D05"]
[WhiteElo "2671"]
[BlackElo "2631"]
[Annotator "TA"]
[PlyCount "82"]
[EventDate "2024.05.13"]
[EventType "swiss"]
[EventCountry "UAE"]
[SourceTitle "playchess.com"]
[Source "ChessBase"]
[SourceQuality "1"]
[TimeControl "5400+30"]

{[%evp 18,82,11,4,0,0,0,0,18,-14,0,-22,0,0,0,-23,-18,-29,0,0,0,0,0,0,0,0,0,0,58,53,56,50,54,51,51,55,48,52,55,57,53,25,31,0,0,0,16,18,16,0,0,-10,-11,-51,-52,-68,-68,-68,-68,-69,-68,-69,-68,-69,-68,-69,-68]} 1. d4 {[%emt 1:31:00]} d5 {[%emt 1:31:00]} 2. Nf3 {[%emt 0:00:30]} Nf6 {[%emt 0:00:30]} 3. e3 {[%emt 0:00:30]} e6 {[%emt 0:00:30]} 4. Nbd2 {[%emt 0:00:30]} Nbd7 {[%emt 0:00:30]} 5. Bd3 {[%emt 0:00:30]} c5 {[%emt 0:00:30]} 6. b3 {[%emt 0:00:30]} Bd6 {[%emt 0:00:30]} 7. Bb2 {[%emt 0:00:30]} b6 {[%emt 0:00:30]} 8. O-O {[%emt 0:00:30]} Bb7 {[%emt 0:00:30]} 9. Ne5 {[%emt 0:00:30]} O-O {[%emt 0:00:30]} 10. f4 {[%emt 0:00:30]} cxd4 {[%emt 0:00:30]} 11. exd4 {[%emt 0:00:30]} Ne4 {[%emt 0:00:30]} 12. Nxe4 {[%emt 0:00:30]} dxe4 {[%emt 0:00:30] The position is equal.} 13. Bc4 {[%emt 0:00:30]} Qc7 {[%emt 0:00:30]} 14. Rc1 {[%emt 0:00:30]} Rad8 {[%emt 0:00:30]} 15. Qe2 {[%emt 0:00:30]} Kh8 {[%emt 0:00:30]} 16. Qe3 {[%emt 0:00:30]} Nf6 {[%emt 0:00:30]} 17. Qh3 {[%emt 0:00:30]} Nd5 {[%emt 0:00:30]} 18. Bxd5 {[%emt 0:00:30]} exd5 {[%emt 0:00:30]} 19. f5 {[%emt 0:00:30]} Bxe5 {[%emt 0:00:30]} 20. dxe5 {[%emt 0:00:30][%cal Bd4e5,Be5e6][%mdl 32] aiming for f6.} Qc5+ {[%emt 0:00:30]} 21. Kh1 {[%emt 0:00:30] [#] Black must now prevent f6.} d4 {[%emt 0:00:30]} 22. Rf4 {[%emt 0:00:30]} g5 {[%emt 0:00:30] Dodges Rh4} (22... Qxe5 $2 23. Rh4 Kg8 24. Rxh7 $18) (22... h6 $1 $11 23. f6 Qxe5) 23. fxg6 $14 {[%emt 0:00:30]} fxg6 {[%emt 0:00:30]} 24. Rxf8+ {[%emt 0:00:30]} Qxf8 {[%emt 0:00:30]} 25. e6 {[%emt 0:00:30]} Kg8 {[%emt 0:00:30]} 26. Qh4 {[%emt 0:00:30] [#] Prevents Qf6. White wants to mate with e7.} Re8 {[%emt 0:00:30][%cal Bd8e8,Be8e6,Be6a6][%mdl 32]} 27. Bxd4 {[%emt 0:00:30]} e3 {[%emt 0:00:30]} 28. Bxe3 {[%emt 0:00:30] Bh6 is the strong threat.} Rxe6 {[%emt 0:00:30]} 29. Qc4 {[%emt 0:00:30]} (29. Qg3 {simplifies} Qd6 30. Qxd6 Rxd6 31. c4) 29... Qf5 {[%emt 0:00:30] ...Qh3 would now be deadly.} 30. Rd1 {[%emt 0:00:30]} b5 {[%emt 0:00:30]} 31. Qd4 {[%emt 0:00:30]} Qe4 {[%emt 0:00:30]} (31... Bxg2+ $5 32. Kg1 (32. Kxg2 Rxe3 33. Qxe3 Qg4+ 34. Kf2 Qxd1 $11) 32... Qe4 $11 (32... Qxc2 33. Qd8+) (32... Bc6 33. Bh6 $11)) 32. Qxe4 {[%emt 0:00:30]} (32. Qxa7 $2 Qxg2#) 32... Bxe4 {[%emt 0:00:30]} 33. Bxa7 $11 {[%emt 0:00:30][%mdl 4096] Endgame. KRB-KRB} Ra6 {[%emt 0:00:30]} 34. Rd4 {[%emt 0:00:30]} Bxc2 {[%emt 0:00:30]} 35. Rd2 {[%emt 0:00:30]} Rxa2 {[%emt 0:00:30] Black is slightly better.} 36. Bd4 {[%emt 0:00:30]} Bxb3 {[%emt 0:00:30]} 37. Rxa2 {[%emt 0:00:30]} Bxa2 {[%emt 0:00:30]} 38. Kg1 {[%emt 0:00:30]} Kf7 {[%emt 0:00:30]} 39. Kf2 {[%emt 0:00:30]} Ke6 {[%emt 0:00:30]} 40. Ke3 {[%emt 0:00:30]} Kd5 {[%emt 0:00:30]} 41. Bf6 {[%emt 0:00:30]} Bb1 {[%emt 0:00:30] Weighted Error Value: White=0.08 (flawless) /Black=0.06 (flawless) .  Mistake:       	---       	Black=1      Inaccurate:     	White=4     	Black=1      OK:         	White=12    	Black=11     Best:        	White=2     	Black=4} 1/2-1/2

[Event "7th Sharjah Masters 2024"]
[Site "Sharjah"]
[Date "2024.05.17"]
[Round "4.4"]
[White "Murzin, Volodar"]
[Black "Sankalp Gupta"]
[Result "1/2-1/2"]
[ECO "C42"]
[WhiteElo "2634"]
[BlackElo "2532"]
[Annotator "RC"]
[PlyCount "53"]
[EventDate "2024.05.13"]
[EventType "swiss"]
[EventCountry "UAE"]
[SourceTitle "playchess.com"]
[Source "ChessBase"]
[SourceQuality "1"]
[TimeControl "5400+30"]

1. e4 {[%emt 0:01:04]} e5 {[%emt 0:00:07]} 2. Nf3 {[%emt 0:00:25]} Nf6 {[%emt 0:00:02]} 3. Nxe5 {[%emt 0:00:46]} d6 {[%emt 0:00:03]} 4. Nf3 {[%emt 0:00:06]} Nxe4 {[%emt 0:00:04]} 5. d4 {[%emt 0:00:27]} d5 {[%emt 0:00:04]} 6. Bd3 {[%emt 0:00:07]} Bd6 {[%emt 0:00:05]} 7. O-O {[%emt 0:00:26]} O-O {[%emt 0:00:17]} 8. c4 {[%emt 0:00:12]} c6 {[%emt 0:00:02]} 9. Qc2 {[%emt 0:00:19]} h6 {[%emt 0:00:58]} 10. Re1 {[%emt 0:00:55]} Be6 {[%emt 0:00:32]} 11. cxd5 {[%emt 0:00:42]} cxd5 {[%emt 0:00:02]} 12. Bxe4 {[%emt 0:00:11]} dxe4 {[%emt 0:00:02]} 13. Qxe4 {[%emt 0:00:09]} Nc6 {[%emt 0:01:10]} 14. Nc3 {[%emt 0:00:16]} Re8 {[%emt 0:05:50]} 15. Bf4 {[%emt 0:25:15]} Bd7 {[%emt 0:00:30]} 16. Ne5 {[%emt 0:19:05]} Nxe5 {[%emt 0:00:24]} 17. Bxe5 {[%emt 0:14:37]} Bxe5 {[%emt 0:25:00]} 18. dxe5 {[%emt 0:00:42]} Bc6 {[%emt 0:00:03]} 19. Qe3 {[%emt 0:01:52]} Qh4 {[%emt 0:00:17]} 20. Rad1 {[%emt 0:02:50]} Rad8 {[%emt 0:02:36]} 21. a3 {[%emt 0:04:03]} a6 {[%emt 0:02:31]} 22. h3 {[%emt 0:03:14]} Qh5 {[%emt 0:07:42]} 23. Rxd8 {[%emt 0:04:31]} Rxd8 {[%emt 0:00:01]} 24. Ne2 {[%emt 0:00:47]} Qg6 {[%emt 0:02:27]} 25. Nf4 {[%emt 0:00:28]} Qc2 {[%emt 0:00:19]} 26. b4 {[%emt 0:04:43]} Kh7 {[%emt 0:03:40]} 27. Qc1 {[%emt 0:10:59]} 1/2-1/2

[Event "7th Sharjah Masters 2024"]
[Site "Sharjah"]
[Date "2024.05.17"]
[Round "4.5"]
[White "Petrosyan, Manuel"]
[Black "Erigaisi Arjun"]
[Result "0-1"]
[ECO "C02"]
[WhiteElo "2618"]
[BlackElo "2762"]
[Annotator "TA"]
[PlyCount "92"]
[EventDate "2024.05.13"]
[EventType "swiss"]
[EventCountry "UAE"]
[SourceTitle "playchess.com"]
[Source "ChessBase"]
[SourceQuality "1"]
[TimeControl "5400+30"]

{[%evp 18,92,30,16,46,14,33,1,70,20,33,31,35,47,43,26,27,32,14,-8,-12,0,59,0,0,0,0,5,0,0,0,-53,0,-59,-51,-54,-31,-43,-43,-36,-40,-42,-43,-86,-86,-82,-82,-74,-81,-77,-88,-74,-74,-93,-25,-296,-283,-272,-220,-495,-481,-623,-617,-63,-581,-679,-584,-605,-518,-872,-793,-1097,-1000,-1761,-1737,-5712,-5435]} 1. e4 {[%emt 1:31:00][%cal Be2e4,Be4e5][%mdl 32]} e6 {[%emt 0:03:29]} 2. d4 {[%emt 0:00:00]} d5 {[%emt 0:00:06]} 3. e5 {[%emt 0:00:00]} c5 {[%emt 0:00:06]} 4. c3 {[%emt 0:00:00]} Nc6 {[%emt 0:00:05]} 5. Nf3 {[%emt 0:00:00]} Bd7 {[%emt 0:00:25]} 6. Be2 {[%emt 0:00:00]} f6 {[%emt 0:00:07]} 7. O-O {[%emt 0:00:00]} fxe5 {[%emt 0:00:06]} 8. Nxe5 {[%emt 0:00:00]} Nxe5 {[%emt 0:00:07]} 9. dxe5 {[%emt 0:00:00]} Qc7 {[%emt 0:00:05]} 10. Re1 {[%emt 0:00:00]} O-O-O {[%emt 0:00:29]} 11. Nd2 {[%emt 0:00:00]} Ne7 {[%emt 0:01:35][%cal Oc8b8]} 12. Nf3 {[%emt 0:00:00] next Ng5 is good for White.} Nf5 {[%emt 0:00:08]} (12... h6 $11) 13. Ng5 {[%emt 0:00:00]} (13. b4 $14) 13... Kb8 {[%emt 0:00:22][%cal Od7c8]} 14. Bd3 {[%emt 0:00:00]} g6 {[%emt 0:00:07][%cal Bg7g6,Bg6g5][%mdl 32]} 15. Bd2 {[%emt 0:00:00]} Bc8 {[%emt 0:00:08]} 16. Nf3 {[%emt 0:00:00]} h6 {[%emt 0:07:23]} 17. b4 {[%emt 0:00:00]} g5 {[%emt 0:06:13]} 18. h3 {[%emt 0:00:00]} Rg8 {[%emt 0:09:03]} 19. g4 {[%emt 0:00:00]} d4 {[%emt 0:03:34]} 20. c4 {[%emt 0:00:00]} (20. gxf5 dxc3 21. Bxc3 c4 $11) (20. Rc1 $1 $14) 20... Ne7 $1 $11 {[%emt 0:00:34]} 21. b5 {[%emt 0:00:00]} b6 {[%emt 0:01:13]} 22. a4 {[%emt 0:00:00]} Bb7 {[%emt 0:00:51]} 23. a5 {[%emt 0:00:00]} Bg7 {[%emt 0:00:28]} 24. Qe2 {[%emt 0:00:00]} (24. Ra3 $11) 24... Rdf8 $1 $15 {[%emt 0:21:35]} 25. Be4 {[%emt 0:00:00]} ({White should play} 25. Nh2 $11) 25... Bxe4 $1 {[%emt 0:00:45]} 26. Qxe4 {[%emt 0:00:00] [#] axb6 would now be deadly.} Qb7 {[%emt 0:00:04]} 27. Qxb7+ {[%emt 0:00:00]} (27. axb6 Qxe4 28. bxa7+ Ka8 29. Rxe4 Rxf3 $19) 27... Kxb7 {[%emt 0:00:09]} 28. Ra3 {[%emt 0:00:00]} Ng6 {[%emt 0:00:13]} 29. Kg2 {[%emt 0:00:00]} Ra8 {[%emt 0:00:19]} 30. Kf1 {[%emt 0:00:00]} Rgf8 {[%emt 0:00:47]} 31. Rea1 {[%emt 0:07:00] [#]} Rxf3 $1 {[%emt 0:20:10]} 32. Rxf3 {[%emt 0:00:23]} Nxe5 {[%emt 0:00:05]} 33. Kg2 {[%emt 0:00:58]} Nxf3 {[%emt 0:00:47]} (33... a6 {keeps more tension.} 34. bxa6+ Rxa6 35. Rb1 Kc6) 34. Kxf3 $17 {[%emt 0:00:04][%mdl 4096] Endgame. KRB-KRB} Rf8+ {[%emt 0:00:05]} 35. Kg2 {[%emt 0:00:37]} Be5 {[%emt 0:00:41]} (35... e5 $17 {aiming for ...e4.} 36. h4 bxa5 (36... gxh4 37. a6+ Kc8 38. Rh1 $17) 37. hxg5 hxg5 38. Bxg5 e4 39. Rxa5 d3) 36. Re1 {[%emt 0:05:20][%mdl 8192]} (36. axb6 $1 $11 axb6 37. Re1) 36... Bf4 $19 {[%emt 0:00:12]} 37. Bxf4 {[%emt 0:00:48]} Rxf4 {[%emt 0:00:06]} 38. axb6 {[%emt 0:01:59]} (38. a6+ Kc7 39. Rxe6 d3 $19) (38. Rxe6 {was forced.} bxa5 39. Re7+ Kb8 40. Re8+ Kc7 41. Re5) 38... Kxb6 {[%emt 0:04:42]} ({Worse is} 38... axb6 39. Rxe6 d3 40. Rd6 $11) 39. Rxe6+ {[%emt 0:00:05] KR-KR} Ka5 {[%emt 0:00:03]} 40. Ra6+ {[%emt 0:00:40]} Kb4 {[%emt 0:00:05]} 41. Rxa7 {[%emt 0:00:03] Black is clearly winning.} Kxc4 {[%emt 0:00:06]} 42. b6 {[%emt 0:00:02] b7 is the strong threat.} Rf6 {[%emt 0:00:06]} 43. Ra6 {[%emt 0:00:17]} (43. b7 $142 Rb6 44. Ra6 Rxb7 (44... Rxa6 $2 {loses.} 45. b8=Q $18) 45. Rxh6) 43... Rf8 {[%emt 0:00:05]} 44. b7 {[%emt 0:00:42]} Rb8 {[%emt 0:00:05]} 45. Rb6 {[%emt 0:00:03]} d3 {[%emt 0:00:47]} 46. Kf1 {[%emt 0:01:02]} Kc3 {[%emt 0:00:21] Weighted Error Value: White=0.80/Black=0.16 (very precise) .  Loses game:     	White=1     	---        Mistake:       	White=6     	Black=3      Inaccurate:     	White=3     	---        OK:         	White=9     	Black=11     Best:        	White=4     	Black=3      Strong:       	---       	Black=3} 0-1

[Event "7th Sharjah Masters 2024"]
[Site "Sharjah"]
[Date "2024.05.17"]
[Round "4.6"]
[White "Theodorou, Nikolas"]
[Black "Yu, Yangyi"]
[Result "1/2-1/2"]
[ECO "E12"]
[WhiteElo "2617"]
[BlackElo "2729"]
[Annotator "TA"]
[PlyCount "156"]
[EventDate "2024.05.13"]
[EventType "swiss"]
[EventCountry "UAE"]
[SourceTitle "playchess.com"]
[Source "ChessBase"]
[SourceQuality "1"]
[TimeControl "5400+30"]

{[%evp 70,156,122,116,123,117,125,116,112,0,110,112,102,104,102,98,107,96,98,0,107,83,85,74,81,74,97,88,93,96,98,98,98,98,98,87,113,103,98,52,88,90,86,84,93,12,12,12,12,12,12,8,30,30,50,50,53,8,8,8,115,115,115,115,115,115,115,115,115,81,81,56,56,56,56,56,56,56,56,56,56,8,8,8,8,0,8,0,8]} 1. d4 {[%emt 1:31:00]} Nf6 {[%emt 1:31:00]} 2. c4 {[%emt 0:00:30]} e6 {[%emt 0:00:30]} 3. Nf3 {[%emt 0:00:30]} b6 {[%emt 0:00:30]} 4. a3 {[%emt 0:00:30]} Bb7 {[%emt 0:00:30]} 5. Nc3 {[%emt 0:00:30]} d5 {[%emt 0:00:30]} 6. Qc2 {[%emt 0:00:30]} Be7 {[%emt 0:00:30]} 7. Bf4 {[%emt 0:00:30] E12: Queen's Indian: Unusual White 4th moves, 4 a3, 4 Nc3 Bb7 5 a3 and 4 Nc3 Bb7 .} c5 {[%emt 0:00:30]} 8. dxc5 {[%emt 0:00:30]} bxc5 {[%emt 0:00:30]} 9. cxd5 {[%emt 0:00:30]} exd5 {[%emt 0:00:30]} 10. e3 {[%emt 0:00:30]} O-O {[%emt 0:00:30]} 11. Be2 {[%emt 0:00:30]} Nbd7 $146 {[%emt 0:00:30]} ({Predecessor:} 11... Nh5 12. Bg3 Nd7 13. Rd1 Nb6 14. a4 a5 15. Ng5 Nf6 16. O-O h6 17. Nh3 Rc8 {½-½ Kolanek,R (1942)-Rutten,D (2135) RA-2012-0-00257}) 12. h3 {[%emt 0:00:30]} Rc8 {[%emt 0:00:30]} 13. Rd1 {[%emt 0:00:30]} d4 {[%emt 0:00:30]} 14. exd4 {[%emt 0:00:30]} cxd4 {[%emt 0:00:30]} 15. Rxd4 {[%emt 0:00:30]} Qb6 {[%emt 0:00:30]} 16. Rd1 {[%emt 0:00:30]} Nd5 {[%emt 0:00:30]} 17. Nxd5 {[%emt 0:00:30]} Rxc2 {[%emt 0:00:30]} 18. Nxb6 {[%emt 0:00:30]} Nxb6 {[%emt 0:00:30]} 19. Be5 {[%emt 0:00:30]} Be4 {[%emt 0:00:30]} 20. Nd2 {[%emt 0:00:30]} Bg6 {[%emt 0:00:30]} 21. Nf1 {[%emt 0:00:30]} f6 {[%emt 0:00:30]} 22. Bd4 {[%emt 0:00:30]} Nd5 {[%emt 0:00:30]} 23. Bf3 {[%emt 0:00:30]} Nf4 {[%emt 0:00:30]} 24. Ne3 {[%emt 0:00:30]} Rc7 {[%emt 0:00:30]} 25. g3 {[%emt 0:00:30]} Ne6 {[%emt 0:00:30]} 26. Bc3 {[%emt 0:00:30]} Bc5 {[%emt 0:00:30]} 27. Nd5 {[%emt 0:00:30]} Rcc8 {[%emt 0:00:30]} 28. h4 {[%emt 0:00:30]} Bf7 {[%emt 0:00:30]} 29. O-O {[%emt 0:00:30]} Nc7 {[%emt 0:00:30]} 30. Nxc7 {[%emt 0:00:30]} Rxc7 31. Ba5 {[%emt 0:00:30]} Rcc8 {[%emt 0:01:00]} 32. Rfe1 {[%emt 0:00:30]} Rfe8 {[%emt 0:00:30]} 33. Rxe8+ {[%emt 0:00:30]} Bxe8 34. Bd5+ {[%emt 0:00:30]} Kf8 {[%emt 0:01:00]} 35. Rc1 {[%emt 0:00:30]} Ke7 (35... Bxf2+ $2 $18) 36. Bd2 {[%emt 0:00:30]} Bd7 {[%emt 0:01:00]} 37. Be4 {[%emt 0:00:30]} h6 {[%emt 0:00:30]} 38. Bg6 {[%emt 0:00:30]} Rc6 {[%emt 0:00:30]} 39. Be4 {[%emt 0:00:30]} Rc8 $1 {[%emt 0:00:30]} 40. Bf4 {[%emt 0:00:30]} Bb6 {[%emt 0:00:30]} 41. Re1 {[%emt 0:00:30]} Kf8 {[%emt 0:00:30]} 42. Bd5 {[%emt 0:00:30]} Bc7 {[%emt 0:00:30]} 43. Be3 {[%emt 0:00:30]} Bb6 {[%emt 0:00:30]} 44. Bf4 {[%emt 0:00:30]} Bc7 {[%emt 0:00:30]} 45. Bxc7 {[%emt 0:00:30]} Rxc7 46. Re3 {[%emt 0:00:30]} Rc5 {[%emt 0:01:00]} 47. Bf3 {[%emt 0:00:30]} Rc2 {[%emt 0:00:30]} 48. Rb3 {[%emt 0:00:30]} a5 {[%emt 0:00:30]} 49. Rb7 {[%emt 0:00:30]} Ke8 {[%emt 0:00:30]} 50. Kf1 {[%emt 0:00:30]} g5 {[%emt 0:00:30]} 51. hxg5 {[%emt 0:00:30]} hxg5 {[%emt 0:00:30]} 52. Ke1 {[%emt 0:00:30]} f5 {[%emt 0:00:30]} 53. Bd1 {[%emt 0:00:30]} Rc5 {[%emt 0:00:30]} 54. b4 {[%emt 0:00:30]} (54. Be2 $16) 54... Re5+ {[%emt 0:00:30]} 55. Kd2 {[%emt 0:00:30]} Rd5+ {[%emt 0:00:30]} 56. Kc1 {[%emt 0:00:30]} Kd8 {[%emt 0:00:30]} 57. Rb8+ {[%emt 0:00:30]} (57. Bb3 $16 Rd6 58. bxa5) 57... Kc7 $11 {[%emt 0:00:30]} 58. Rg8 {[%emt 0:00:30]} axb4 {[%emt 0:00:30]} 59. axb4 {[%emt 0:00:30]} ({Don't play} 59. Rxg5 bxa3 60. Rg6 Bb5 $17) 59... g4 {[%emt 0:00:30]} 60. Bc2 {[%emt 0:00:30]} Rd4 {[%emt 0:00:30]} 61. Rf8 {[%emt 0:00:30]} Kd6 {[%emt 0:00:30]} 62. b5 {[%emt 0:00:30]} (62. Bxf5 Ke7 63. Bxd7 Kxf8 $11) 62... Rb4 {[%emt 0:00:30]} 63. b6 {[%emt 0:00:30]} (63. Bxf5 Rxb5 64. Bd3 Ra5) 63... Rxb6 {[%emt 0:00:30]} 64. Rf6+ {[%emt 0:00:30]} (64. Bxf5 Ke7 $16) 64... Kc5 {[%emt 0:00:30]} (64... Be6 $11) 65. Rxb6 $16 {[%emt 0:00:30]} Kxb6 {[%emt 0:00:30]} 66. Kd2 {[%emt 0:00:30]} f4 {[%emt 0:00:30]} 67. gxf4 {[%emt 0:00:30]} Kc7 {[%emt 0:00:30]} 68. Ke3 {[%emt 0:00:30]} Kd6 {[%emt 0:00:30]} 69. Ke4 {[%emt 0:00:30]} Ke6 {[%emt 0:00:30]} 70. f5+ {[%emt 0:00:30]} Kf6 {[%emt 0:00:30]} 71. Kf4 {[%emt 0:00:30]} Bc8 {[%emt 0:00:30]} 72. Kxg4 {[%emt 0:00:30]} Bd7 {[%emt 0:00:30]} 73. Kf4 {[%emt 0:00:30]} Bc8 {[%emt 0:00:30]} 74. Be4 {[%emt 0:00:30]} Bd7 {[%emt 0:00:30]} 75. Bb7 {[%emt 0:00:30]} (75. f3 $14 {feels stronger.}) 75... Bxf5 $11 {[%emt 0:00:30]} 76. Be4 {[%emt 0:00:30]} Bd7 {[%emt 0:00:30]} 77. Bb7 {[%emt 0:00:30]} Bf5 {[%emt 0:00:30]} 78. Be4 {[%emt 0:00:30]} Bd7 {[%emt 0:00:30]} 1/2-1/2